[Event "Titled Tuesday Blitz January 10 Late 2023"]
[White "De Arruda, Leandro Formes"]
[Black "Necromon"]
[WhiteFideId "22722009"]
[WhiteElo "1980"]
[BlackElo "2454"]
[Result "1-0"]
[Round "07"]
[TimeControl "180+2"]
[Date "2023.01.10"]
[WhiteClock "0:00:38"]
[BlackClock "0:01:18"]

1. d4 {[%clk 0:00:00]}  Nf6 {[%clk 0:00:00]} 2. Nf3 {[%clk 0:03:00]}  c5 {[%clk 0:02:58]} 3. e3 {[%clk 0:03:00]}  g6 {[%clk 0:02:58]} 4. Be2 {[%clk 0:03:00]}  Bg7 {[%clk 0:02:57]} 5. O-O {[%clk 0:03:00]}  O-O {[%clk 0:02:57]} 6. c4 {[%clk 0:03:00]}  cxd4 {[%clk 0:02:57]} 7. exd4 {[%clk 0:03:00]}  d5 {[%clk 0:02:53]} 8. c5 {[%clk 0:03:01]}  a5 {[%clk 0:02:53]} 9. Nc3 {[%clk 0:03:00]}  Nc6 {[%clk 0:02:51]} 10. Ne5 {[%clk 0:02:59]}  Nd7 {[%clk 0:02:51]} 11. f4 {[%clk 0:02:53]}  f6 {[%clk 0:02:43]} 12. Nxd7 {[%clk 0:02:48]}  Qxd7 {[%clk 0:02:35]} 13. Bf3 {[%clk 0:02:38]}  e6 {[%clk 0:02:36]} 14. Nb5 {[%clk 0:02:15]}  b6 {[%clk 0:02:33]} 15. cxb6 {[%clk 0:02:14]}  Rb8 {[%clk 0:02:09]} 16. a4 {[%clk 0:02:06]}  Rxb6 {[%clk 0:02:06]} 17. Be3 {[%clk 0:02:01]}  Ba6 {[%clk 0:02:05]} 18. Be2 {[%clk 0:01:58]}  Na7 {[%clk 0:02:00]} 19. Qd2 {[%clk 0:01:58]}  Nxb5 {[%clk 0:01:51]} 20. Qxa5 {[%clk 0:01:48]}  Rfb8 {[%clk 0:01:43]} 21. axb5 {[%clk 0:01:43]}  Bxb5 {[%clk 0:01:42]} 22. Bxb5 {[%clk 0:01:36]}  Rxb5 {[%clk 0:01:41]} 23. Qa4 {[%clk 0:01:21]}  Qb7 {[%clk 0:01:41]} 24. Bc1 {[%clk 0:01:12]}  Rb4 {[%clk 0:01:36]} 25. Qa6 {[%clk 0:01:09]}  Kf7 {[%clk 0:01:33]} 26. Qd6 {[%clk 0:01:05]}  Rxd4 {[%clk 0:01:30]} 27. Be3 {[%clk 0:00:58]}  f5 {[%clk 0:01:23]} 28. Bxd4 {[%clk 0:00:49]}  Bxd4+ {[%clk 0:01:23]} 29. Kh1 {[%clk 0:00:43]}  Bxb2 {[%clk 0:01:23]} 30. Ra6 {[%clk 0:00:44]}  Re8 {[%clk 0:01:18]} 31. Rb6 {[%clk 0:00:38]} 1-0


[Site "https://www.chess.com"]

[Event "Titled Tuesday Blitz January 10 Late 2023"]
[White "Kabilov, Amin"]
[Black "Estrada Nieto, Julian"]
[WhiteFideId "14700859"]
[BlackFideId "5101018"]
[WhiteElo "2207"]
[BlackElo "2215"]
[Result "0-1"]
[Round "07"]
[TimeControl "180+2"]
[Date "2023.01.10"]
[WhiteClock "0:00:02"]
[BlackClock "0:00:10"]

1. e4 {[%clk 0:00:00]}  e5 {[%clk 0:00:00]} 2. Nf3 {[%clk 0:03:00]}  Nc6 {[%clk 0:02:25]} 3. Nc3 {[%clk 0:03:00]}  Nf6 {[%clk 0:02:24]} 4. Bc4 {[%clk 0:03:00]}  Bc5 {[%clk 0:02:23]} 5. O-O {[%clk 0:03:01]}  d6 {[%clk 0:02:22]} 6. d3 {[%clk 0:02:59]}  Na5 {[%clk 0:02:22]} 7. Bg5 {[%clk 0:02:59]}  Nxc4 {[%clk 0:02:21]} 8. dxc4 {[%clk 0:02:37]}  Be6 {[%clk 0:02:20]} 9. Nd5 {[%clk 0:02:38]}  c6 {[%clk 0:02:19]} 10. b4 {[%clk 0:02:34]}  cxd5 {[%clk 0:02:19]} 11. cxd5 {[%clk 0:02:07]}  Bb6 {[%clk 0:02:10]} 12. dxe6 {[%clk 0:02:03]}  fxe6 {[%clk 0:01:39]} 13. Bxf6 {[%clk 0:01:59]}  gxf6 {[%clk 0:01:39]} 14. Nd2 {[%clk 0:01:45]}  O-O {[%clk 0:01:38]} 15. Qg4+ {[%clk 0:01:26]}  Kh8 {[%clk 0:01:36]} 16. Qxe6 {[%clk 0:01:23]}  Qc8 {[%clk 0:01:22]} 17. Qb3 {[%clk 0:01:20]}  Qc6 {[%clk 0:01:21]} 18. c3 {[%clk 0:00:48]}  Rac8 {[%clk 0:00:53]} 19. Rac1 {[%clk 0:00:36]}  f5 {[%clk 0:00:51]} 20. exf5 {[%clk 0:00:34]}  Rxf5 {[%clk 0:00:42]} 21. Qc2 {[%clk 0:00:27]}  Rcf8 {[%clk 0:00:42]} 22. Ne4 {[%clk 0:00:20]}  d5 {[%clk 0:00:31]} 23. Nc5 {[%clk 0:00:13]}  Bxc5 {[%clk 0:00:29]} 24. bxc5 {[%clk 0:00:13]}  Qxc5 {[%clk 0:00:28]} 25. Rcd1 {[%clk 0:00:14]}  e4 {[%clk 0:00:28]} 26. c4 {[%clk 0:00:14]}  e3 {[%clk 0:00:27]} 27. Qe2 {[%clk 0:00:13]}  Rxf2 {[%clk 0:00:23]} 28. Rxf2 {[%clk 0:00:05]}  exf2+ {[%clk 0:00:17]} 29. Kf1 {[%clk 0:00:04]}  Qxc4 {[%clk 0:00:18]} 30. Qxc4 {[%clk 0:00:03]}  dxc4 {[%clk 0:00:16]} 31. Rc1 {[%clk 0:00:03]}  b5 {[%clk 0:00:16]} 32. a4 {[%clk 0:00:02]}  a6 {[%clk 0:00:16]} 33. axb5 {[%clk 0:00:01]}  axb5 {[%clk 0:00:16]} 34. Rb1 {[%clk 0:00:02]}  Rf5 {[%clk 0:00:17]} 35. g4 {[%clk 0:00:03]}  Rd5 {[%clk 0:00:16]} 36. Kxf2 {[%clk 0:00:02]}  Kg7 {[%clk 0:00:15]} 37. Ke3 {[%clk 0:00:03]}  Rd3+ {[%clk 0:00:15]} 38. Ke4 {[%clk 0:00:02]}  Rb3 {[%clk 0:00:13]} 39. Rxb3 {[%clk 0:00:02]}  cxb3 {[%clk 0:00:10]} 40. Kd3 {[%clk 0:00:02]}  Kf6 {[%clk 0:00:10]} 0-1


[Site "https://www.chess.com"]

[Event "Titled Tuesday Blitz January 10 Late 2023"]
[White "Becerra, Juan David"]
[Black "Atanasov, Radislav"]
[WhiteFideId "4404998"]
[BlackFideId "2901471"]
[WhiteElo "2382"]
[BlackElo "2025"]
[Result "1-0"]
[Round "07"]
[TimeControl "180+2"]
[Date "2023.01.10"]
[WhiteClock "0:01:08"]
[BlackClock "0:00:08"]

1. e4 {[%clk 0:00:00]}  e5 {[%clk 0:00:00]} 2. Nf3 {[%clk 0:02:54]}  Nc6 {[%clk 0:02:59]} 3. Bc4 {[%clk 0:02:53]}  Nf6 {[%clk 0:02:59]} 4. c3 {[%clk 0:02:53]}  Nxe4 {[%clk 0:02:58]} 5. O-O {[%clk 0:02:52]}  d5 {[%clk 0:02:28]} 6. Bb5 {[%clk 0:02:52]}  Bc5 {[%clk 0:02:27]} 7. d3 {[%clk 0:02:52]}  Nd6 {[%clk 0:02:24]} 8. Bxc6+ {[%clk 0:02:43]}  bxc6 {[%clk 0:02:01]} 9. Nxe5 {[%clk 0:02:37]}  Bd7 {[%clk 0:02:01]} 10. d4 {[%clk 0:02:38]}  Bb6 {[%clk 0:01:55]} 11. Nxd7 {[%clk 0:02:37]}  Qxd7 {[%clk 0:01:54]} 12. Re1+ {[%clk 0:02:35]}  Kf8 {[%clk 0:01:52]} 13. b3 {[%clk 0:02:36]}  Re8 {[%clk 0:01:48]} 14. Ba3 {[%clk 0:02:33]}  Kg8 {[%clk 0:01:39]} 15. Nd2 {[%clk 0:02:32]}  h6 {[%clk 0:01:35]} 16. Rxe8+ {[%clk 0:02:25]}  Qxe8 {[%clk 0:01:29]} 17. Qf1 {[%clk 0:02:20]}  Kh7 {[%clk 0:01:22]} 18. Re1 {[%clk 0:02:21]}  Qd7 {[%clk 0:01:12]} 19. Qd3+ {[%clk 0:02:19]}  g6 {[%clk 0:01:11]} 20. Kf1 {[%clk 0:02:18]}  Re8 {[%clk 0:01:11]} 21. Rxe8 {[%clk 0:01:48]}  Nxe8 {[%clk 0:01:10]} 22. Nf3 {[%clk 0:01:47]}  Nf6 {[%clk 0:01:01]} 23. Ne5 {[%clk 0:01:41]}  Qe6 {[%clk 0:00:56]} 24. f3 {[%clk 0:01:40]}  c5 {[%clk 0:00:56]} 25. dxc5 {[%clk 0:01:40]}  Qxe5 {[%clk 0:00:43]} 26. cxb6 {[%clk 0:01:35]}  axb6 {[%clk 0:00:41]} 27. Qd4 {[%clk 0:01:35]}  Qxd4 {[%clk 0:00:41]} 28. cxd4 {[%clk 0:01:35]}  Kg7 {[%clk 0:00:18]} 29. Be7 {[%clk 0:01:36]}  Nd7 {[%clk 0:00:17]} 30. a4 {[%clk 0:01:32]}  f5 {[%clk 0:00:14]} 31. b4 {[%clk 0:01:27]}  Kf7 {[%clk 0:00:14]} 32. Bd8 {[%clk 0:01:25]}  c6 {[%clk 0:00:14]} 33. a5 {[%clk 0:01:25]}  bxa5 {[%clk 0:00:12]} 34. bxa5 {[%clk 0:01:25]}  Nb8 {[%clk 0:00:12]} 35. g4 {[%clk 0:01:26]}  fxg4 {[%clk 0:00:11]} 36. fxg4 {[%clk 0:01:10]}  Ke8 {[%clk 0:00:10]} 37. Bb6 {[%clk 0:01:11]}  Nd7 {[%clk 0:00:11]} 38. Bc7 {[%clk 0:01:09]}  c5 {[%clk 0:00:08]} 39. a6 {[%clk 0:01:08]} 1-0


[Site "https://www.chess.com"]

[Event "Titled Tuesday Blitz January 10 Late 2023"]
[White "Zampronha, Wladimir Camilo"]
[Black "Szyszylo, Rafal"]
[WhiteFideId "2103087"]
[BlackFideId "1109626"]
[WhiteElo "2176"]
[BlackElo "2091"]
[Result "1-0"]
[Round "07"]
[TimeControl "180+2"]
[Date "2023.01.10"]
[WhiteClock "0:00:30"]
[BlackClock "0:00:17"]

1. e4 {[%clk 0:00:00]}  d6 {[%clk 0:00:00]} 2. d4 {[%clk 0:03:00]}  Nf6 {[%clk 0:02:58]} 3. Nc3 {[%clk 0:03:00]}  g6 {[%clk 0:02:57]} 4. Bg5 {[%clk 0:03:01]}  Bg7 {[%clk 0:02:57]} 5. f4 {[%clk 0:03:00]}  h6 {[%clk 0:02:57]} 6. Bh4 {[%clk 0:03:01]}  O-O {[%clk 0:02:56]} 7. Qd2 {[%clk 0:02:59]}  c6 {[%clk 0:02:56]} 8. O-O-O {[%clk 0:02:58]}  b5 {[%clk 0:02:42]} 9. e5 {[%clk 0:02:57]}  b4 {[%clk 0:02:42]} 10. exf6 {[%clk 0:02:57]}  bxc3 {[%clk 0:02:37]} 11. Qxc3 {[%clk 0:02:56]}  exf6 {[%clk 0:02:37]} 12. Nf3 {[%clk 0:02:54]}  Qb6 {[%clk 0:02:36]} 13. Kb1 {[%clk 0:02:46]}  f5 {[%clk 0:02:33]} 14. Be7 {[%clk 0:02:38]}  Be6 {[%clk 0:02:32]} 15. Bxf8 {[%clk 0:02:33]}  Kxf8 {[%clk 0:02:08]} 16. Bc4 {[%clk 0:02:30]}  Nd7 {[%clk 0:02:08]} 17. Bxe6 {[%clk 0:02:28]}  fxe6 {[%clk 0:01:59]} 18. Qb3 {[%clk 0:02:27]}  Kf7 {[%clk 0:02:00]} 19. Rhe1 {[%clk 0:02:27]}  Re8 {[%clk 0:01:41]} 20. Qxb6 {[%clk 0:02:26]}  Nxb6 {[%clk 0:01:31]} 21. b3 {[%clk 0:02:23]}  Nd5 {[%clk 0:01:30]} 22. g3 {[%clk 0:02:21]}  Nc3+ {[%clk 0:01:29]} 23. Kc1 {[%clk 0:01:58]}  Nxd1 {[%clk 0:01:29]} 24. Kxd1 {[%clk 0:01:58]}  Rc8 {[%clk 0:01:30]} 25. c4 {[%clk 0:01:56]}  Bf6 {[%clk 0:01:25]} 26. Kd2 {[%clk 0:01:49]}  g5 {[%clk 0:01:23]} 27. Kd3 {[%clk 0:01:46]}  g4 {[%clk 0:01:23]} 28. Nd2 {[%clk 0:01:44]}  h5 {[%clk 0:01:23]} 29. b4 {[%clk 0:01:43]}  h4 {[%clk 0:01:22]} 30. a4 {[%clk 0:01:35]}  a6 {[%clk 0:01:21]} 31. Rb1 {[%clk 0:01:33]}  hxg3 {[%clk 0:01:20]} 32. hxg3 {[%clk 0:01:30]}  Rh8 {[%clk 0:01:17]} 33. b5 {[%clk 0:01:30]}  axb5 {[%clk 0:01:17]} 34. cxb5 {[%clk 0:01:30]}  cxb5 {[%clk 0:01:17]} 35. axb5 {[%clk 0:01:30]}  Rb8 {[%clk 0:01:17]} 36. Nc4 {[%clk 0:01:31]}  Ke7 {[%clk 0:01:02]} 37. Na5 {[%clk 0:01:27]}  Kd7 {[%clk 0:01:02]} 38. Kc4 {[%clk 0:01:27]}  d5+ {[%clk 0:01:02]} 39. Kd3 {[%clk 0:01:20]}  Rb6 {[%clk 0:01:01]} 40. Nc6 {[%clk 0:01:18]}  Rb7 {[%clk 0:00:48]} 41. Kc3 {[%clk 0:01:18]}  Kd6 {[%clk 0:00:37]} 42. Kb4 {[%clk 0:01:09]}  Bg7 {[%clk 0:00:24]} 43. Ra1 {[%clk 0:01:07]}  Bf8 {[%clk 0:00:23]} 44. Ra8 {[%clk 0:01:02]}  Be7 {[%clk 0:00:22]} 45. Rg8 {[%clk 0:01:02]}  Kd7+ {[%clk 0:00:21]} 46. Nxe7 {[%clk 0:00:53]}  Rc7 {[%clk 0:00:20]} 47. Nc6 {[%clk 0:00:49]}  Kd6 {[%clk 0:00:20]} 48. Rd8+ {[%clk 0:00:48]}  Rd7 {[%clk 0:00:20]} 49. Rxd7+ {[%clk 0:00:47]}  Kxd7 {[%clk 0:00:20]} 50. Kc5 {[%clk 0:00:47]}  Kc7 {[%clk 0:00:21]} 51. Nb4 {[%clk 0:00:47]}  Kb7 {[%clk 0:00:22]} 52. Nxd5 {[%clk 0:00:43]}  exd5 {[%clk 0:00:22]} 53. Kxd5 {[%clk 0:00:43]}  Kb6 {[%clk 0:00:22]} 54. Ke6 {[%clk 0:00:44]}  Kxb5 {[%clk 0:00:23]} 55. d5 {[%clk 0:00:43]}  Kc4 {[%clk 0:00:24]} 56. d6 {[%clk 0:00:43]}  Kd4 {[%clk 0:00:13]} 57. Kxf5 {[%clk 0:00:41]}  Ke3 {[%clk 0:00:14]} 58. Kxg4 {[%clk 0:00:41]}  Kd4 {[%clk 0:00:13]} 59. d7 {[%clk 0:00:41]}  Ke4 {[%clk 0:00:13]} 60. Kg5 {[%clk 0:00:42]}  Kf3 {[%clk 0:00:13]} 61. f5 {[%clk 0:00:40]}  Ke4 {[%clk 0:00:13]} 62. Kf6 {[%clk 0:00:40]}  Kf3 {[%clk 0:00:13]} 63. Ke7 {[%clk 0:00:40]}  Kg4 {[%clk 0:00:13]} 64. f6 {[%clk 0:00:40]}  Kg5 {[%clk 0:00:13]} 65. f7 {[%clk 0:00:40]}  Kg4 {[%clk 0:00:14]} 66. f8=Q {[%clk 0:00:40]}  Kg5 {[%clk 0:00:15]} 67. Qf4+ {[%clk 0:00:39]}  Kg6 {[%clk 0:00:16]} 68. Qg5+ {[%clk 0:00:38]}  Kxg5 {[%clk 0:00:15]} 69. d8=Q {[%clk 0:00:37]}  Kg4 {[%clk 0:00:15]} 70. Ke6 {[%clk 0:00:36]}  Kf3 {[%clk 0:00:16]} 71. g4 {[%clk 0:00:35]}  Kxg4 {[%clk 0:00:15]} 72. Qf8 {[%clk 0:00:35]}  Kg5 {[%clk 0:00:16]} 73. Qf3 {[%clk 0:00:34]}  Kh6 {[%clk 0:00:16]} 74. Qg2 {[%clk 0:00:32]}  Kh5 {[%clk 0:00:17]} 75. Kf5 {[%clk 0:00:31]}  Kh6 {[%clk 0:00:17]} 76. Qg6# {[%clk 0:00:30]} 1-0


[Site "https://www.chess.com"]

[Event "Titled Tuesday Blitz January 10 Late 2023"]
[White "Clawitter, Craig"]
[Black "Dedona, Mark"]
[WhiteFideId "2023105"]
[BlackFideId "30920256"]
[WhiteElo "2050"]
[BlackElo "1662"]
[Result "0-1"]
[Round "07"]
[TimeControl "180+2"]
[Date "2023.01.10"]
[WhiteClock "0:00:01"]
[BlackClock "0:01:10"]

1. e4 {[%clk 0:00:00]}  c5 {[%clk 0:00:00]} 2. Nf3 {[%clk 0:03:00]}  d6 {[%clk 0:02:43]} 3. d4 {[%clk 0:03:00]}  cxd4 {[%clk 0:02:42]} 4. Nxd4 {[%clk 0:03:00]}  Nf6 {[%clk 0:02:43]} 5. Nc3 {[%clk 0:03:01]}  a6 {[%clk 0:02:44]} 6. Be3 {[%clk 0:03:02]}  Ng4 {[%clk 0:02:44]} 7. Bg5 {[%clk 0:03:02]}  h6 {[%clk 0:02:44]} 8. Bh4 {[%clk 0:03:01]}  g5 {[%clk 0:02:44]} 9. Bg3 {[%clk 0:03:01]}  Bg7 {[%clk 0:02:44]} 10. Be2 {[%clk 0:03:02]}  h5 {[%clk 0:02:45]} 11. Bxg4 {[%clk 0:02:57]}  Bxg4 {[%clk 0:02:44]} 12. f3 {[%clk 0:02:33]}  h4 {[%clk 0:02:42]} 13. Bf2 {[%clk 0:02:33]}  Be6 {[%clk 0:02:43]} 14. Qd2 {[%clk 0:02:29]}  Bc4 {[%clk 0:02:43]} 15. Nf5 {[%clk 0:02:15]}  Bf6 {[%clk 0:02:36]} 16. Ne3 {[%clk 0:01:49]}  b5 {[%clk 0:02:22]} 17. Nxc4 {[%clk 0:01:30]}  bxc4 {[%clk 0:02:15]} 18. Qd5 {[%clk 0:01:17]}  Nd7 {[%clk 0:02:14]} 19. Qxc4 {[%clk 0:01:18]}  Rc8 {[%clk 0:02:13]} 20. Qxa6 {[%clk 0:01:18]}  Bxc3+ {[%clk 0:02:12]} 21. bxc3 {[%clk 0:01:09]}  O-O {[%clk 0:02:05]} 22. Qd3 {[%clk 0:01:09]}  Qa5 {[%clk 0:02:00]} 23. O-O {[%clk 0:00:42]}  Rxc3 {[%clk 0:01:53]} 24. Be1 {[%clk 0:00:41]}  Rxd3 {[%clk 0:01:51]} 25. Bxa5 {[%clk 0:00:26]}  Ra3 {[%clk 0:01:50]} 26. Bd2 {[%clk 0:00:25]}  f6 {[%clk 0:01:49]} 27. Bc1 {[%clk 0:00:18]}  Rc3 {[%clk 0:01:49]} 28. Rf2 {[%clk 0:00:15]}  Rfc8 {[%clk 0:01:48]} 29. a4 {[%clk 0:00:15]}  Rxc2 {[%clk 0:01:48]} 30. Rxc2 {[%clk 0:00:11]}  Rxc2 {[%clk 0:01:48]} 31. a5 {[%clk 0:00:12]}  Rc6 {[%clk 0:01:49]} 32. a6 {[%clk 0:00:13]}  Rc8 {[%clk 0:01:50]} 33. a7 {[%clk 0:00:13]}  Ra8 {[%clk 0:01:50]} 34. Be3 {[%clk 0:00:13]}  Kf7 {[%clk 0:01:51]} 35. Rb1 {[%clk 0:00:12]}  Ke6 {[%clk 0:01:50]} 36. Rb7 {[%clk 0:00:12]}  Rc8 {[%clk 0:01:50]} 37. Rb8 {[%clk 0:00:12]}  Rxb8 {[%clk 0:01:38]} 38. axb8=Q {[%clk 0:00:11]}  Nxb8 {[%clk 0:01:33]} 39. Kf2 {[%clk 0:00:11]}  Nc6 {[%clk 0:01:34]} 40. Ke2 {[%clk 0:00:10]}  Ke5 {[%clk 0:01:32]} 41. g3 {[%clk 0:00:10]}  e6 {[%clk 0:01:28]} 42. f4+ {[%clk 0:00:09]}  Kxe4 {[%clk 0:01:25]} 43. fxg5 {[%clk 0:00:08]}  fxg5 {[%clk 0:01:25]} 44. Bxg5 {[%clk 0:00:09]}  hxg3 {[%clk 0:01:25]} 45. hxg3 {[%clk 0:00:08]}  d5 {[%clk 0:01:26]} 46. Kd2 {[%clk 0:00:09]}  d4 {[%clk 0:01:26]} 47. Bh6 {[%clk 0:00:07]}  Ne5 {[%clk 0:01:25]} 48. Bf4 {[%clk 0:00:07]}  Ng4 {[%clk 0:01:25]} 49. Ke2 {[%clk 0:00:07]}  e5 {[%clk 0:01:24]} 50. Bg5 {[%clk 0:00:06]}  d3+ {[%clk 0:01:24]} 51. Kd2 {[%clk 0:00:06]}  Kd4 {[%clk 0:01:24]} 52. Bh6 {[%clk 0:00:06]}  e4 {[%clk 0:01:23]} 53. Bf4 {[%clk 0:00:05]}  e3+ {[%clk 0:01:24]} 54. Ke1 {[%clk 0:00:05]}  Ke4 {[%clk 0:01:22]} 55. Kd1 {[%clk 0:00:03]}  Kf3 {[%clk 0:01:19]} 56. Ke1 {[%clk 0:00:03]}  Kg2 {[%clk 0:01:19]} 57. Bxe3 {[%clk 0:00:02]}  Kf3 {[%clk 0:01:15]} 58. Kd2 {[%clk 0:00:02]}  Ke4 {[%clk 0:01:10]} 59. Bf4 {[%clk 0:00:01]}  Nh2 {[%clk 0:01:10]} 0-1


[Site "https://www.chess.com"]

[Event "Titled Tuesday Blitz January 10 Late 2023"]
[White "rikchessmx"]
[Black "Delaere, Jeroen"]
[BlackFideId "204129"]
[WhiteElo "2330"]
[BlackElo "2104"]
[Result "1-0"]
[Round "07"]
[TimeControl "180+2"]
[Date "2023.01.10"]
[WhiteClock "0:02:08"]
[BlackClock "0:01:02"]

1. e4 {[%clk 0:00:00]}  c6 {[%clk 0:00:00]} 2. d4 {[%clk 0:03:00]}  d5 {[%clk 0:02:59]} 3. Nc3 {[%clk 0:03:00]}  dxe4 {[%clk 0:02:58]} 4. Nxe4 {[%clk 0:03:01]}  Nf6 {[%clk 0:02:57]} 5. Ng5 {[%clk 0:03:01]}  Bf5 {[%clk 0:02:55]} 6. N1f3 {[%clk 0:02:59]}  h6 {[%clk 0:02:50]} 7. Nh3 {[%clk 0:02:58]}  Bxh3 {[%clk 0:02:45]} 8. gxh3 {[%clk 0:02:55]}  e6 {[%clk 0:02:42]} 9. c3 {[%clk 0:02:55]}  Nbd7 {[%clk 0:02:42]} 10. Bf4 {[%clk 0:02:55]}  c5 {[%clk 0:02:39]} 11. Bg3 {[%clk 0:02:54]}  cxd4 {[%clk 0:02:38]} 12. Nxd4 {[%clk 0:02:48]}  Be7 {[%clk 0:02:36]} 13. Bg2 {[%clk 0:02:48]}  Nc5 {[%clk 0:02:28]} 14. b4 {[%clk 0:02:48]}  Nce4 {[%clk 0:02:19]} 15. Qc2 {[%clk 0:02:43]}  Nxg3 {[%clk 0:02:16]} 16. hxg3 {[%clk 0:02:38]}  Nd5 {[%clk 0:02:06]} 17. a3 {[%clk 0:02:37]}  O-O {[%clk 0:01:59]} 18. O-O {[%clk 0:02:32]}  Rc8 {[%clk 0:01:52]} 19. Ne2 {[%clk 0:02:29]}  Bf6 {[%clk 0:01:50]} 20. Rad1 {[%clk 0:02:29]}  Qc7 {[%clk 0:01:45]} 21. Bxd5 {[%clk 0:02:23]}  exd5 {[%clk 0:01:34]} 22. Rxd5 {[%clk 0:02:21]}  Bxc3 {[%clk 0:01:33]} 23. Rc5 {[%clk 0:02:22]}  Qe7 {[%clk 0:01:31]} 24. Rxc3 {[%clk 0:02:20]}  Rxc3 {[%clk 0:01:18]} 25. Nxc3 {[%clk 0:02:11]}  Rc8 {[%clk 0:01:15]} 26. Nd5 {[%clk 0:02:11]}  Qe6 {[%clk 0:01:14]} 27. Qxc8+ {[%clk 0:02:10]}  Qxc8 {[%clk 0:01:02]} 28. Ne7+ {[%clk 0:02:08]} 1-0


[Site "https://www.chess.com"]

[Event "Titled Tuesday Blitz January 10 Late 2023"]
[White "Simonovic, Miroslav"]
[Black "Vasques, Antonio Pedro Freixial"]
[WhiteFideId "919152"]
[BlackFideId "1908332"]
[WhiteElo "2082"]
[BlackElo "2214"]
[Result "1/2-1/2"]
[Round "07"]
[TimeControl "180+2"]
[Date "2023.01.10"]
[WhiteClock "0:00:05"]
[BlackClock "0:00:24"]

1. d4 {[%clk 0:00:00]}  Nf6 {[%clk 0:00:00]} 2. Bg5 {[%clk 0:03:00]}  Ne4 {[%clk 0:02:57]} 3. h4 {[%clk 0:03:01]}  c5 {[%clk 0:02:55]} 4. dxc5 {[%clk 0:03:01]}  Qa5+ {[%clk 0:02:51]} 5. Nd2 {[%clk 0:03:00]}  Nxd2 {[%clk 0:02:49]} 6. Qxd2 {[%clk 0:03:01]}  Qxc5 {[%clk 0:02:45]} 7. c3 {[%clk 0:03:02]}  Nc6 {[%clk 0:02:45]} 8. e4 {[%clk 0:02:38]}  d6 {[%clk 0:02:44]} 9. Be3 {[%clk 0:02:37]}  Qa5 {[%clk 0:02:29]} 10. b4 {[%clk 0:02:37]}  Qc7 {[%clk 0:02:30]} 11. f4 {[%clk 0:02:36]}  g6 {[%clk 0:02:30]} 12. Nf3 {[%clk 0:02:26]}  Bg7 {[%clk 0:02:26]} 13. Rc1 {[%clk 0:02:24]}  Kd8 {[%clk 0:02:25]} 14. h5 {[%clk 0:02:22]}  Bg4 {[%clk 0:02:21]} 15. hxg6 {[%clk 0:02:18]}  hxg6 {[%clk 0:02:20]} 16. Rxh8+ {[%clk 0:02:14]}  Bxh8 {[%clk 0:02:21]} 17. Be2 {[%clk 0:02:14]}  Rc8 {[%clk 0:02:21]} 18. c4 {[%clk 0:02:13]}  Ke8 {[%clk 0:02:19]} 19. Kf2 {[%clk 0:02:07]}  Kf8 {[%clk 0:02:16]} 20. a3 {[%clk 0:02:05]}  Bf6 {[%clk 0:02:16]} 21. Nd4 {[%clk 0:01:54]}  Bxe2 {[%clk 0:02:01]} 22. Kxe2 {[%clk 0:01:52]}  Qd7 {[%clk 0:01:58]} 23. Kf3 {[%clk 0:01:51]}  Bxd4 {[%clk 0:01:49]} 24. Bxd4 {[%clk 0:01:42]}  e5 {[%clk 0:01:37]} 25. Bxe5 {[%clk 0:01:42]}  Nxe5+ {[%clk 0:01:38]} 26. fxe5 {[%clk 0:01:34]}  Rc6 {[%clk 0:01:30]} 27. c5 {[%clk 0:01:35]}  Ra6 {[%clk 0:01:30]} 28. Rc3 {[%clk 0:01:26]}  d5 {[%clk 0:01:21]} 29. Qxd5 {[%clk 0:01:21]}  Qe7 {[%clk 0:01:16]} 30. c6 {[%clk 0:01:14]}  bxc6 {[%clk 0:01:10]} 31. Rxc6 {[%clk 0:01:03]}  Rxa3+ {[%clk 0:01:08]} 32. Kg4 {[%clk 0:01:04]}  Qxb4 {[%clk 0:01:07]} 33. e6 {[%clk 0:00:57]}  f5+ {[%clk 0:00:39]} 34. Kg5 {[%clk 0:00:23]}  Rg3+ {[%clk 0:00:37]} 35. Kf6 {[%clk 0:00:19]}  Qe7+ {[%clk 0:00:36]} 36. Ke5 {[%clk 0:00:17]}  fxe4 {[%clk 0:00:36]} 37. Rc8+ {[%clk 0:00:17]}  Kg7 {[%clk 0:00:32]} 38. Qd7 {[%clk 0:00:16]}  Rg5+ {[%clk 0:00:32]} 39. Kxe4 {[%clk 0:00:15]}  Kf6 {[%clk 0:00:31]} 40. Qxe7+ {[%clk 0:00:15]}  Kxe7 {[%clk 0:00:29]} 41. Rc7+ {[%clk 0:00:12]}  Kxe6 {[%clk 0:00:28]} 42. Rxa7 {[%clk 0:00:11]}  Rxg2 {[%clk 0:00:28]} 43. Ra6+ {[%clk 0:00:11]}  Kf7 {[%clk 0:00:29]} 44. Kf4 {[%clk 0:00:11]}  Rb2 {[%clk 0:00:29]} 45. Ra7+ {[%clk 0:00:11]}  Kf6 {[%clk 0:00:22]} 46. Ra6+ {[%clk 0:00:10]}  Kg7 {[%clk 0:00:22]} 47. Kg5 {[%clk 0:00:10]}  Rb5+ {[%clk 0:00:23]} 48. Kg4 {[%clk 0:00:09]}  Kh6 {[%clk 0:00:23]} 49. Rc6 {[%clk 0:00:09]}  Rb4+ {[%clk 0:00:23]} 50. Kg3 {[%clk 0:00:09]}  Kh5 {[%clk 0:00:24]} 51. Rc8 {[%clk 0:00:08]}  Rd4 {[%clk 0:00:24]} 52. Rh8+ {[%clk 0:00:08]}  Kg5 {[%clk 0:00:22]} 53. Rf8 {[%clk 0:00:07]}  Rd3+ {[%clk 0:00:23]} 54. Kg2 {[%clk 0:00:06]}  Kg4 {[%clk 0:00:23]} 55. Rb8 {[%clk 0:00:04]}  Rd2+ {[%clk 0:00:23]} 56. Kg1 {[%clk 0:00:04]}  g5 {[%clk 0:00:21]} 57. Rb3 {[%clk 0:00:04]}  Re2 {[%clk 0:00:21]} 58. Rc3 {[%clk 0:00:03]}  Kf4 {[%clk 0:00:19]} 59. Rc4+ {[%clk 0:00:02]}  Kg3 {[%clk 0:00:19]} 60. Rc3+ {[%clk 0:00:01]}  Kf4 {[%clk 0:00:19]} 61. Rc4+ {[%clk 0:00:01]}  Kf3 {[%clk 0:00:18]} 62. Rc3+ {[%clk 0:00:01]}  Re3 {[%clk 0:00:19]} 63. Rxe3+ {[%clk 0:00:02]}  Kxe3 {[%clk 0:00:19]} 64. Kg2 {[%clk 0:00:01]}  Kf4 {[%clk 0:00:19]} 65. Kf2 {[%clk 0:00:01]}  Kg4 {[%clk 0:00:18]} 66. Kg2 {[%clk 0:00:01]}  Kf4 {[%clk 0:00:18]} 67. Kf2 {[%clk 0:00:02]}  g4 {[%clk 0:00:19]} 68. Kg2 {[%clk 0:00:02]}  g3 {[%clk 0:00:20]} 69. Kg1 {[%clk 0:00:02]}  Ke3 {[%clk 0:00:20]} 70. Kg2 {[%clk 0:00:03]}  Kf4 {[%clk 0:00:21]} 71. Kg1 {[%clk 0:00:03]}  Kf3 {[%clk 0:00:22]} 72. Kf1 {[%clk 0:00:04]}  Kg4 {[%clk 0:00:22]} 73. Kg2 {[%clk 0:00:04]}  Kh4 {[%clk 0:00:23]} 74. Kg1 {[%clk 0:00:04]}  Kh3 {[%clk 0:00:24]} 75. Kh1 {[%clk 0:00:05]}  Kg4 {[%clk 0:00:24]} 76. Kg2 {[%clk 0:00:05]}  Kf4 {[%clk 0:00:24]} 1/2-1/2


[Site "https://www.chess.com"]